fUST/lending_fUST_20240712
["ID","MTS","AMOUNT","RATE_DAILY","PERIOD"]
[331829921,1720773595232,-500.0,0.00027671,7]
[331829922,1720773595259,-500.0,0.00027671,7]
[331829923,1720773595287,-907.3,0.00027671,7]
[331829924,1720773595313,-500.0,0.00027671,7]
[331829925,1720773595338,-1371.12,0.00027671,7]
[331829926,1720773595364,-500.0,0.00027671,7]
[331829927,1720773595390,-500.0,0.00027671,7]
[331829928,1720773595418,-500.0,0.00027671,7]
[331829929,1720773595443,-500.0,0.00027671,7]
[331829930,1720773595475,-500.0,0.00027671,7]
[331829931,1720773595501,-500.0,0.00027671,7]
[331829932,1720773595527,-500.0,0.00027671,7]
[331829933,1720773595556,-500.0,0.00027671,7]
[331829934,1720773595581,-500.0,0.00027671,7]
[331829935,1720773595607,-500.0,0.00027671,7]
[331829936,1720773595633,-4715.38,0.00027671,7]
[331829937,1720773595657,-500.0,0.00027671,7]
[331829938,1720773595683,-500.0,0.00027671,7]
[331829939,1720773595708,-500.0,0.00027671,7]
[331829940,1720773595810,-500.0,0.00027671,7]
[331829941,1720773595837,-537.08346395,0.00027671,7]
[331829942,1720773595866,-500.0,0.00027671,7]
[331829943,1720773595893,-500.0,0.00027671,7]
[331829944,1720773595921,-521.49745201,0.00027671,7]
[331829945,1720773595948,-500.0,0.00027671,7]
[331829946,1720773595973,-500.0,0.00027671,7]
[331829947,1720773596000,-500.0,0.00027671,7]
[331829948,1720773596026,-500.0,0.00027671,7]
[331829949,1720773596052,-500.0,0.00027671,7]
[331829950,1720773596078,-500.0,0.00027671,7]
[331829951,1720773596104,-500.0,0.00027671,7]
[331829952,1720773596130,-500.0,0.00027671,7]
[331829953,1720773596155,-571.40198138,0.00027671,15]
[331829954,1720773596181,-763.98,0.00027671,7]
[331829955,1720773596208,-151.0,0.00027671,7]
[331829956,1720773596234,-151.0,0.00027671,7]
[331829957,1720773596260,-276.750282,0.00027671,7]
[331829958,1720773596285,-500.0,0.00027671,7]
[331829959,1720773596312,-500.0,0.00027671,7]
[331829960,1720773596339,-500.0,0.00027671,7]
[331829961,1720773596367,-500.0,0.00027671,7]
[331829962,1720773596393,-635.95,0.00027671,7]
[331829963,1720773596422,-500.0,0.00027671,7]
[331829964,1720773596450,-500.0,0.00027671,7]
[331829965,1720773596483,-500.0,0.00027671,7]
[331829966,1720773596509,-500.0,0.00027671,7]
[331829967,1720773596537,-500.0,0.00027945,7]
[331829968,1720773596564,-500.0,0.00027945,7]
[331829969,1720773596592,-500.0,0.00027945,7]
[331829970,1720773596618,-500.0,0.00027945,7]
[331829971,1720773596647,-500.0,0.00027945,7]
[331829972,1720773596675,-500.0,0.00027945,7]
[331829973,1720773596702,-500.0,0.00027945,7]
[331829974,1720773596727,-500.0,0.00027945,7]
[331829975,1720773596754,-500.0,0.00027945,7]
[331829976,1720773596781,-500.0,0.00027945,7]
[331829977,1720773596807,-506.87341709,0.00027945,7]
[331829978,1720773596834,-527.09912681,0.00027945,7]
[331829979,1720773596862,-536.81655107,0.00027945,7]
[331829980,1720773596889,-500.0,0.00027945,7]
[331829981,1720773596918,-500.0,0.00027945,7]
[331829982,1720773596946,-535.33927665,0.00027945,7]
[331829983,1720773596975,-500.0,0.00027945,7]
[331829984,1720773597002,-500.0,0.00027945,7]
[331829985,1720773597030,-500.0,0.00027945,7]
[331829986,1720773597130,-617.40972204,0.00027945,7]
[331829987,1720773597157,-500.0,0.00027945,7]
[331829988,1720773597185,-500.0,0.00027945,7]
[331829989,1720773597212,-535.03675756,0.00027945,7]
[331829990,1720773597238,-507.82873343,0.00027945,7]
[331829991,1720773597264,-518.06470788,0.00027945,7]
[331829992,1720773597291,-500.0,0.00027945,7]
[331829993,1720773597318,-500.0,0.00027945,7]
[331829994,1720773597346,-519.8591323,0.00027945,7]
[331829995,1720773597373,-500.0,0.00027945,7]
[331829996,1720773597400,-533.02472711,0.00027945,7]
[331829997,1720773597426,-500.0,0.00027945,7]
[331829998,1720773597453,-500.0,0.00027945,7]
[331829999,1720773597484,-500.0,0.00027945,7]
[331830000,1720773597511,-533.16692908,0.00027945,7]
[331830001,1720773597539,-500.0,0.00027945,7]
[331830002,1720773597568,-508.87071407,0.00027945,7]
[331830003,1720773597597,-500.0,0.00027945,7]
[331830004,1720773597624,-500.0,0.00027945,7]
[331830005,1720773597652,-500.0,0.00027945,7]
[331830006,1720773597678,-515.54128505,0.00027945,7]
[331830007,1720773597703,-509.71570484,0.00027945,7]
[331830008,1720773597728,-512.22726071,0.00027945,7]
[331830009,1720773597754,-531.8716647,0.00027945,7]
[331830010,1720773597779,-510.41566995,0.00027945,7]
[331830011,1720773597804,-500.0,0.00027945,7]
[331830012,1720773597829,-500.0,0.00027945,7]
[331830013,1720773597854,-500.0,0.00027945,7]
[331830014,1720773597879,-500.0,0.00027945,7]
[331830015,1720773597904,-500.0,0.00027945,7]
[331830016,1720773597929,-519.10515912,0.00027945,7]
[331830017,1720773597956,-500.0,0.00027945,7]
[331830018,1720773597982,-524.71451294,0.00027945,7]
[331830019,1720773598011,-516.35529767,0.00027945,7]
[331830020,1720773598039,-511.11040264,0.00027945,7]
[331830021,1720773598064,-500.0,0.00027945,7]
[331830022,1720773598089,-500.0,0.00027945,7]
[331830023,1720773598115,-515.5022991,0.00027945,7]
[331830024,1720773598140,-515.84204879,0.00027945,7]
[331830025,1720773598166,-500.0,0.00027945,7]
[331830026,1720773598192,-519.75444479,0.00027945,7]
[331830027,1720773598217,-507.42994931,0.00027945,7]
[331830028,1720773598242,-515.83,0.00027945,7]
[331830029,1720773598340,-639.74,0.00027945,7]
[331830030,1720773598369,-525.16340015,0.00027945,7]
[331830031,1720773598395,-500.0,0.00027945,7]
[331830032,1720773598421,-500.0,0.00027945,7]
[331830033,1720773598446,-500.0,0.00027945,7]
[331830034,1720773598474,-500.0,0.00027945,7]
[331830035,1720773598499,-500.0,0.00027945,7]
[331830036,1720773598524,-500.0,0.00027945,7]
[331830037,1720773598552,-500.0,0.00027945,7]
[331830038,1720773598577,-500.0,0.00027945,7]
[331830039,1720773598604,-500.0,0.00027945,7]
[331830040,1720773598629,-509.96876516,0.00027945,7]
[331830041,1720773598654,-500.0,0.00027945,7]
[331830042,1720773598680,-500.0,0.00027945,7]
[331830043,1720773598705,-500.0,0.00027945,7]
[331830044,1720773598731,-500.0,0.00027945,7]
[331830045,1720773598755,-500.0,0.00027945,7]
[331830046,1720773598781,-510.40030263,0.00027945,7]
[331830047,1720773598806,-500.0,0.00027945,7]
[331830048,1720773598832,-500.0,0.00027945,7]
[331830049,1720773598864,-500.0,0.00027945,7]
[331830050,1720773598891,-571.03879832,0.00027945,7]
[331830051,1720773598919,-500.0,0.00027945,7]
[331830052,1720773598946,-512.798385,0.00027945,7]
[331830053,1720773598972,-503.96412107,0.00027945,7]
[331830054,1720773598997,-508.74010165,0.00027945,7]
[331830055,1720773599023,-552.66135231,0.00027945,7]
[331830056,1720773599048,-519.068149,0.00027945,7]
[331830057,1720773599073,-600.86205055,0.00027945,7]
[331830058,1720773599099,-505.65066003,0.00027945,7]
[331830059,1720773599124,-511.89228388,0.00027945,7]
[331830060,1720773599150,-499.53117937,0.00027945,7]
[331830061,1720773599176,-500.0,0.00027945,7]
[331830062,1720773599205,-511.41879591,0.00027945,7]
[331830063,1720773599231,-500.0,0.00027945,7]
[331830064,1720773599259,-500.0,0.00027945,7]
[331830065,1720773599285,-505.38532649,0.00027945,7]
[331830066,1720773599312,-500.0,0.00027945,7]
[331830067,1720773599340,-500.0,0.00027945,7]
[331830068,1720773599370,-582.91,0.00027945,7]
[331830069,1720773599396,-500.0,0.00027945,7]
[331830070,1720773599423,-519.168318,0.00027945,7]
[331830071,1720773599450,-526.53624378,0.00027945,7]
[331830072,1720773599547,-507.15323285,0.00027945,7]
[331830073,1720773599574,-506.22981944,0.00027945,7]
[331830074,1720773599599,-513.13777477,0.00027945,7]
[331830075,1720773599626,-500.0,0.00027945,7]
[331830076,1720773599654,-500.0,0.00027945,7]
[331830077,1720773599684,-500.0,0.00027945,7]
[331830078,1720773599712,-500.0,0.00027945,7]
[331830079,1720773599738,-500.0,0.00027945,7]
[331830080,1720773599764,-515.54356475,0.00027945,7]
[331830081,1720773599791,-500.0,0.00027945,7]
[331830082,1720773599817,-500.0,0.00027945,7]
[331830083,1720773599844,-505.70214218,0.00027945,7]
[331830084,1720773599872,-500.0,0.00027945,7]
[331830085,1720773599899,-500.0,0.00027945,7]
[331830086,1720773599924,-500.0,0.00027945,7]
[331830087,1720773599952,-500.0,0.00027945,7]
[331830088,1720773599978,-500.0,0.00027945,7]
[331830089,1720773600003,-500.0,0.00027945,7]
[331830090,1720773600029,-500.0,0.00027945,7]
[331830091,1720773600056,-500.0,0.00027945,7]
[331830092,1720773600084,-509.07114844,0.00027945,7]
[331830093,1720773600110,-500.0,0.00027945,7]
[331830094,1720773600136,-506.1473347,0.00027945,7]
[331830095,1720773600163,-500.0,0.00027945,7]
[331830096,1720773600190,-500.0,0.00027945,7]
[331830097,1720773600216,-500.0,0.00027945,7]
[331830098,1720773600243,-516.99254905,0.00027945,7]
[331830099,1720773600273,-500.0,0.00027945,7]
[331830100,1720773600300,-500.0,0.00027945,7]
[331830101,1720773600327,-500.0,0.00027945,7]
[331830102,1720773600356,-298.28704745,0.00027945,7]
[331830103,1720773600383,-500.0,0.00027945,7]
[331830104,1720773600409,-525.42928517,0.00027945,7]
[331830105,1720773600437,-500.0,0.00027945,7]
[331830106,1720773600466,-500.0,0.00027945,7]
[331830107,1720773600493,-200.0,0.00027945,7]
[331830108,1720773600519,-503.8314911,0.00027945,7]
[331830109,1720773600548,-500.0,0.00027945,7]
[331830110,1720773600575,-500.0,0.00027945,7]
[331830111,1720773600602,-500.0,0.00027945,7]
[331830112,1720773600694,-500.0,0.00027945,7]
[331830113,1720773600722,-513.0102623,0.00027945,7]
[331830114,1720773600748,-522.2675658,0.00027945,7]
[331830115,1720773600775,-500.0,0.00027945,7]
[331830116,1720773600803,-511.27493332,0.00027945,7]
[331830117,1720773600830,-536.82195666,0.00027945,7]
[331830118,1720773600857,-500.0,0.00027945,7]
[331830119,1720773600883,-500.0,0.00027945,7]
[331830120,1720773600914,-500.0,0.00027945,7]
[331830121,1720773600941,-523.78629375,0.00027945,7]
[331830122,1720773600969,-500.0,0.00027945,7]
[331830123,1720773600997,-500.0,0.00027945,7]
[331830124,1720773601024,-500.0,0.00027945,7]
[331830125,1720773601052,-163.04602105,0.00027945,7]
[331830126,1720773601084,-500.0,0.00027945,7]
[331830127,1720773601117,-500.0,0.00027945,7]
[331830128,1720773601147,-500.0,0.00027945,7]
[331830129,1720773601178,-500.0,0.00027945,7]
[331830130,1720773601208,-512.91338309,0.00027945,7]
[331830131,1720773601237,-500.0,0.00027945,7]
[331830132,1720773601265,-500.0,0.00027945,7]
[331830133,1720773601293,-500.0,0.00027945,7]
[331830134,1720773601320,-575.55860591,0.00027945,7]
[331830135,1720773601349,-515.5208443,0.00027945,7]
[331830136,1720773601375,-500.0,0.00027945,7]
[331830137,1720773601401,-500.0,0.00027945,7]
[331830138,1720773601428,-500.0,0.00027945,7]
[331830139,1720773601456,-500.0,0.00027945,7]
[331830140,1720773601484,-517.57632176,0.00027945,7]
[331830141,1720773601511,-500.0,0.00027945,7]
[331830142,1720773601539,-500.0,0.00027945,7]
[331830143,1720773601568,-500.0,0.00027945,7]
[331830144,1720773601596,-500.0,0.00027945,7]
[331830145,1720773601623,-500.0,0.00027945,7]
[331830146,1720773601650,-500.0,0.00027945,7]
[331830147,1720773601678,-500.0,0.00027945,7]
[331830148,1720773601704,-500.0,0.00027945,7]
[331830149,1720773601731,-636.1189837,0.00027945,7]
[331830150,1720773601758,-500.0,0.00027945,7]
[331830152,1720773601784,-579.19,0.00027945,7]
[331830156,1720773601878,-500.0,0.00027945,7]
[331830157,1720773601906,-500.0,0.00027945,7]
[331830158,1720773601934,-515.27561264,0.00027945,7]
[331830159,1720773601961,-500.0,0.00027945,7]
[331830160,1720773601988,-500.0,0.00027945,7]
[331830161,1720773602015,-541.22256349,0.00027945,7]
[331830162,1720773602044,-516.00229652,0.00027945,7]
[331830163,1720773602073,-560.63841167,0.00027945,7]
[331830164,1720773602100,-465.64561765,0.00027945,7]
[331830165,1720773602128,-500.0,0.00027945,7]
[331830166,1720773602155,-512.55301525,0.00027945,7]
[331830167,1720773602182,-500.0,0.00027945,7]
[331830168,1720773602209,-525.68747521,0.00027945,7]
[331830169,1720773602237,-500.0,0.00027945,7]
[331830170,1720773602265,-500.0,0.00027945,7]
[331830171,1720773602294,-562.17691459,0.00027945,7]
[331830172,1720773602326,-504.03563729,0.00027945,7]
[331830173,1720773602356,-518.49655189,0.00027945,7]
[331830174,1720773602385,-500.0,0.00027945,7]
[331830175,1720773602413,-500.0,0.00027945,7]
[331830176,1720773602440,-357.96166594,0.00027945,7]
[331830177,1720773602470,-536.30759965,0.00027945,7]
[331830178,1720773602498,-500.0,0.00027945,7]
[331830179,1720773602525,-500.0,0.00027945,7]
[331830180,1720773602558,-500.0,0.00027945,7]
[331830181,1720773602585,-500.0,0.00027945,7]
[331830182,1720773602614,-593.71301083,0.00027945,7]
[331830183,1720773602641,-500.0,0.00027945,7]
[331830184,1720773602669,-500.0,0.00027945,7]
[331830185,1720773602696,-500.0,0.00027945,7]
[331830186,1720773602724,-500.0,0.00027945,7]
[331830187,1720773602752,-507.96727172,0.00027945,7]
[331830188,1720773602779,-500.0,0.00027945,7]
[331830189,1720773602805,-500.0,0.00027945,7]
[331830190,1720773602833,-1500.0,0.00027945,7]
[331830191,1720773602860,-500.0,0.00027945,7]
[331830192,1720773602887,-515.72696819,0.00027945,7]
[331830193,1720773602913,-500.0,0.00027945,7]
[331830194,1720773603011,-517.55120939,0.00027945,7]
[331830195,1720773603048,-836.42,0.00027945,7]
[331830196,1720773603077,-500.0,0.00027945,7]
[331830197,1720773603106,-506.1592099,0.00027945,7]
[331830198,1720773603135,-513.51737223,0.00027945,7]
[331830199,1720773603164,-500.0,0.00027945,7]
[331830200,1720773603196,-500.0,0.00027945,7]
[331830201,1720773603226,-522.27308572,0.00027945,7]
[331830202,1720773603255,-541.12,0.00027945,7]
[331830203,1720773603284,-500.0,0.00027945,7]
[331830204,1720773603314,-500.0,0.00027945,7]
[331830205,1720773603343,-522.23733184,0.00027945,7]
[331830206,1720773603374,-525.15495247,0.00027945,7]
[331830207,1720773603402,-500.0,0.00027945,7]
[331830208,1720773603432,-530.29,0.00027945,7]
[331830209,1720773603463,-500.0,0.00027945,7]
[331830210,1720773603493,-542.58,0.00027945,7]
[331830211,1720773603525,-500.0,0.00027945,7]
[331830212,1720773603555,-512.62992828,0.00027945,7]
[331830213,1720773603590,-500.0,0.00027945,7]
[331830214,1720773603622,-1271.0,0.00027945,7]
[331830215,1720773603652,-635.83017177,0.00027945,7]
[331830216,1720773603681,-500.0,0.00027945,7]
[331830217,1720773603710,-500.0,0.00027945,7]
[331830218,1720773603738,-508.34518917,0.00027945,7]
[331830219,1720773603767,-518.39544721,0.00027945,7]
[331830220,1720773603801,-500.0,0.00027945,7]
[331830221,1720773603831,-508.54615723,0.00027945,7]
[331830222,1720773603863,-513.15511248,0.00027945,7]
[331830223,1720773603893,-500.0,0.00027945,7]
[331830224,1720773603922,-510.06904395,0.00027945,7]
[331830225,1720773603953,-500.0,0.00027945,7]
[331830226,1720773603984,-500.0,0.00027945,7]
[331830227,1720773604015,-500.0,0.00027945,7]
[331830228,1720773604047,-2095.77,0.00027945,7]
[331830229,1720773604079,-511.66202328,0.00027945,7]
[331830230,1720773604110,-500.0,0.00027945,7]
[331830231,1720773604205,-500.0,0.00027945,7]
[331830232,1720773604236,-531.62237325,0.00027945,7]
[331830233,1720773604267,-500.0,0.00027945,7]
[331830234,1720773604299,-500.0,0.00027945,7]
[331830235,1720773604330,-498.44266938,0.00027945,7]
[331830236,1720773604362,-559.23125757,0.00027945,7]
[331830237,1720773604392,-519.93996769,0.00027945,7]
[331830238,1720773604423,-500.0,0.00027945,7]
[331830239,1720773604455,-504.9154164,0.00027945,7]
[331830240,1720773604488,-500.0,0.00027945,7]
[331830241,1720773604517,-516.19015606,0.00027945,7]
[331830242,1720773604548,-1020.62,0.00027945,7]
[331830243,1720773604577,-500.0,0.00027945,7]
[331830244,1720773604605,-508.96867645,0.00027945,7]
[331830245,1720773604636,-500.0,0.00027945,7]
[331830246,1720773604665,-180.28161142,0.00027945,7]
[331830247,1720773604701,-508.12929971,0.00027945,7]
[331830248,1720773604740,-500.0,0.00027945,7]
[331830249,1720773604775,-500.0,0.00027945,7]
[331830250,1720773604812,-500.0,0.00027945,7]
[331830251,1720773604843,-500.0,0.00027945,7]
[331830252,1720773604884,-500.0,0.00027945,7]
[331830253,1720773604944,-500.0,0.00027945,7]
[331830254,1720773604981,-500.0,0.00027945,7]
[331830255,1720773605013,-500.0,0.00027945,7]
[331830256,1720773605058,-500.0,0.00027945,7]
[331830257,1720773605099,-500.0,0.00027945,7]
[331830258,1720773605135,-500.0,0.00027945,7]
[331830259,1720773605165,-500.0,0.00027945,7]
[331830260,1720773605193,-500.0,0.00027945,7]
[331830261,1720773605223,-500.0,0.00027945,7]
[331830262,1720773605253,-500.0,0.00027945,7]
[331830263,1720773605283,-500.0,0.00027945,7]
[331830264,1720773605312,-500.0,0.00027945,7]
[331830265,1720773605341,-500.0,0.00027945,7]
[331830266,1720773605441,-500.0,0.00027945,7]
[331830267,1720773605475,-500.0,0.00027945,7]
[331830268,1720773605505,-500.0,0.00027945,7]
[331830269,1720773605534,-500.0,0.00027945,7]
[331830270,1720773605566,-510.97471325,0.00027945,7]
[331830271,1720773605595,-500.0,0.00027945,7]
[331830272,1720773605625,-500.0,0.00027945,7]
[331830273,1720773605654,-500.0,0.00027945,7]
[331830274,1720773605688,-500.0,0.00027945,7]
[331830275,1720773605719,-500.0,0.00027945,7]
[331830276,1720773605749,-500.0,0.00027945,7]
[331830277,1720773605779,-532.92757952,0.00027945,7]
[331830278,1720773605814,-366.49442003,0.00027945,7]
[331830279,1720773605845,-500.0,0.00027945,7]
[331830280,1720773605875,-500.0,0.00027945,7]
[331830281,1720773605905,-517.10079679,0.00027945,7]
[331830282,1720773605934,-500.0,0.00027945,7]
[331830283,1720773605964,-500.0,0.00027945,7]
[331830284,1720773605994,-500.0,0.00027945,7]
[331830285,1720773606023,-527.43162264,0.00027945,7]
[331830286,1720773606052,-500.0,0.00027945,7]
[331830287,1720773606081,-506.80003944,0.00027945,7]
[331830288,1720773606110,-500.0,0.00027945,7]
[331830289,1720773606139,-170.32335968,0.00027945,7]
[331830290,1720773606167,-546.58806882,0.00027945,7]
[331830291,1720773606195,-526.44251316,0.00027945,7]
[331830292,1720773606223,-500.0,0.00027945,7]
[331830293,1720773606252,-500.0,0.00027945,7]
[331830294,1720773606281,-500.0,0.00027945,7]
[331830295,1720773606310,-500.0,0.00027945,7]
[331830296,1720773606339,-500.0,0.00027945,7]
[331830297,1720773606367,-500.0,0.00027945,7]
[331830298,1720773606397,-500.0,0.00027945,7]
[331830299,1720773606425,-500.0,0.00027945,7]
[331830300,1720773606455,-500.0,0.00027945,7]
[331830301,1720773606559,-500.0,0.00027945,7]
[331830302,1720773606588,-500.0,0.00027945,7]
[331830303,1720773606619,-1126.09,0.00027945,7]
[331830304,1720773606649,-500.0,0.00027945,7]
[331830305,1720773606678,-500.0,0.00027945,7]
[331830306,1720773606707,-574.19,0.00027945,7]
[331830307,1720773606736,-500.0,0.00027945,7]
[331830308,1720773606764,-500.0,0.00027945,7]
[331830309,1720773606794,-500.0,0.00027945,7]
[331830310,1720773606824,-500.0,0.00027945,7]
[331830311,1720773606854,-500.0,0.00027945,7]
[331830312,1720773606882,-197.26833554,0.00027945,7]
[331830313,1720773606914,-500.0,0.00027945,7]
[331830314,1720773606944,-500.0,0.00027945,7]
[331830315,1720773606972,-517.25815078,0.00027945,7]
[331830316,1720773607003,-500.0,0.00027945,7]
[331830317,1720773607049,-500.0,0.00027945,7]
[331830318,1720773607107,-183.86888074,0.00027945,7]
[331830319,1720773607161,-514.97669871,0.00027945,7]
[331830320,1720773607210,-500.0,0.00027945,7]
[331830321,1720773607266,-500.0,0.00027945,7]
[331830322,1720773607316,-500.0,0.00027945,7]
[331830323,1720773607361,-500.0,0.00027945,7]
[331830324,1720773607407,-500.0,0.00027945,7]
[331830325,1720773607453,-573.58828135,0.00027945,7]
[331830326,1720773607501,-530.11,0.00027945,7]
[331830327,1720773607547,-500.0,0.00027945,7]
[331830328,1720773607592,-500.0,0.00027945,7]
[331830329,1720773607642,-907.3,0.00027945,7]
[331830330,1720773607688,-507.53055052,0.00027945,7]
[331830331,1720773607734,-788.84342968,0.00027945,7]
[331830332,1720773608053,283.52516772,0.00016255,2]
[331830333,1720773608142,530.38887076,0.00016255,2]
[331830334,1720773608629,725.71765032,0.00016255,2]
[331830335,1720773608695,318.92327881,0.00016255,2]
[331830336,1720773608738,480.81570684,0.00016255,2]
[331830337,1720773608781,209.35070592,0.00016255,2]
[331830338,1720773608848,154.63660398,0.00016255,2]
[331830339,1720773608964,154.63660398,0.00016255,2]
[331830340,1720773609008,16254.80038427,0.00016255,2]
[331830341,1720773609076,182.04277412,0.00016255,2]
[331830342,1720773609358,936.02671898,0.00016255,2]
[331830343,1720773609895,208.85428527,0.00016255,2]
[331830344,1720773610198,154.63660398,0.00016255,2]
[331830345,1720773610272,195.97964944,0.00016255,2]
[331830346,1720773610542,213.14468238,0.00016255,2]
[331830347,1720773610827,1230.2993923,0.00016255,2]
[331830348,1720773612092,193.91984713,0.00016255,2]
[331830349,1720773613443,5288.07030532,0.00016255,2]
[331830350,1720773613804,403.7518777,0.00016255,2]
[331830351,1720773614755,209.35070592,0.00016255,2]
[331830352,1720773617180,180.0289481,0.00016255,2]
[331830353,1720773618011,16254.80038427,0.00016255,2]
[331830355,1720773630246,4701.03547835,0.00016255,2]
[331830356,1720773646239,4701.03547835,0.00016255,2]
[331830357,1720773658558,156.03084927,0.00016255,2]
[331830358,1720773660835,154.63660398,0.00016255,2]
[331830359,1720773666666,2103.62892291,0.00016255,2]
[331830360,1720773667118,375.00206261,0.00016255,2]
[331830361,1720773667663,1988.50300609,0.00016255,2]
[331830362,1720773673920,183.61390587,0.00016255,2]
[331830363,1720773681771,662.60273561,0.00016255,2]
[331830364,1720773688029,201.06577068,0.00016255,2]
[331830365,1720773693773,154.97868108,0.00016255,2]
[331830366,1720773695643,518.26359044,0.00016255,2]
[331830367,1720773696650,662.60273561,0.00016255,2]
[331830368,1720773699813,458.58757804,0.00016255,2]
[331830369,1720773705378,213.14468238,0.00016255,2]
[331830370,1720773716212,187.84280407,0.00016255,2]
[331830371,1720773716458,154.63660398,0.00016255,2]
[331830372,1720773717399,626.57747549,0.00016255,2]
[331830373,1720773718477,909.32419218,0.00016255,2]
[331830374,1720773720762,182.04277412,0.00016255,2]
[331830376,1720773728956,2694.34610183,0.00016255,2]
[331830377,1720773730878,287.05721812,0.00016255,2]
[331830378,1720773732540,16257.44476057,0.00016255,2]
[331830379,1720773737946,154.63660398,0.00016255,2]
[331830380,1720773742247,950.1531885,0.00016255,2]
[331830381,1720773750244,4701.03547835,0.00016255,2]
[331830383,1720773761640,2103.62892291,0.00016255,2]
[331830384,1720773770858,886.16851084,0.00016255,2]
[331830385,1720773770903,2129.18009702,0.00016255,2]
[331830387,1720773791554,997.03311847,0.00016255,2]
[331830388,1720773791636,2103.62892291,0.00016255,2]
[331830389,1720773793754,155.40769618,0.00016255,2]
[331830390,1720773796144,283.52516772,0.00016255,2]
[331830391,1720773797200,777.81408945,0.00016255,2]
[331830392,1720773797254,180.0289481,0.00016255,2]
[331830393,1720773798521,159.28356156,0.00016255,2]
[331830394,1720773800389,213.14468238,0.00016255,2]
[331830395,1720773800926,2129.18009702,0.00016255,2]
[331830396,1720773803730,532.59095872,0.00016255,2]
[331830397,1720773806636,900.5544446,0.00016255,2]
[331830398,1720773808949,530.38887076,0.00016255,2]
[331830399,1720773811782,174.71615306,0.00016255,2]
[331830400,1720773812199,180.0289481,0.00016255,2]
[331830401,1720773813282,209.35070592,0.00016255,2]
[331830402,1720773821501,186.48061449,0.00016255,2]
[331830403,1720773825924,208.85428527,0.00016255,2]
[331830404,1720773827401,1023.28560988,0.00016255,2]
[331830405,1720773829100,195.97964944,0.00016255,2]
[331830406,1720773830447,213.14468238,0.00016255,2]
[331830407,1720773830758,165.25732412,0.00016255,2]
[331830408,1720773832876,3935.39682001,0.00016255,2]
[331830409,1720773833713,532.59095872,0.00016255,2]
[331830410,1720773841305,936.02671898,0.00016255,2]
[331830411,1720773844108,195.97964944,0.00016255,2]
[331830412,1720773845564,1988.50300609,0.00016255,2]
[331830414,1720773860158,318.92327881,0.00016255,2]
[331830415,1720773862094,384.92441816,0.00016255,2]
[331830416,1720773865433,725.71765032,0.00016255,2]
[331830417,1720773868394,294.42069891,0.00016255,2]
[331830418,1720773868801,163.75264255,0.00016255,2]
[331830419,1720773871776,293.91603992,0.00016255,2]
[331830420,1720773878320,403.7518777,0.00016255,2]
[331830421,1720773879355,201.06577068,0.00016255,2]
[331830422,1720773897486,909.32419218,0.00016255,2]
[331830423,1720773903664,677.08279916,0.00016255,2]
[331830424,1720773903827,2103.62892291,0.00016255,2]
[331830425,1720773905424,154.63660398,0.00016255,2]
[331830426,1720773906777,181.8878663,0.00016255,2]
[331830427,1720773917915,518.26359044,0.00016255,2]
[331830428,1720773928225,187.84280407,0.00016255,2]
[331830429,1720773935802,458.58757804,0.00016255,2]